[Event "*** Titled Tuesday Blitz"]
[Site "Chess.com"]
[Date "2019.06.04"]
[Round "1"]
[White "nrvisakh"]
[Black "NMJeevanK"]
[Result "0-1"]
[WhiteElo "2740"]
[BlackElo "2422"]
[TimeControl "180+2"]
[EndTime "13:06:46 PDT"]
[Termination "NMJeevanK won on time"]

1. e4 {[%clk 0:02:59.6]} 1... e5 {[%clk 0:03:00.2]} 2. Nf3 {[%clk 0:02:49.2]}
2... Nc6 {[%clk 0:03:01.3]} 3. Bc4 {[%clk 0:02:44.3]} 3... Bc5 {[%clk
0:03:00.6]} 4. d3 {[%clk 0:02:42.5]} 4... Nf6 {[%clk 0:03:01.6]} 5. a4 {[%clk
0:02:40.3]} 5... h6 {[%clk 0:03:00.4]} 6. c3 {[%clk 0:02:38.1]} 6... O-O {[%clk
0:03:00.6]} 7. b4 {[%clk 0:02:38.2]} 7... Bd6 {[%clk 0:02:56.1]} 8. O-O {[%clk
0:02:37.5]} 8... a6 {[%clk 0:02:57.2]} 9. Nbd2 {[%clk 0:02:36]} 9... Rb8 {[%clk
0:02:53.8]} 10. b5 {[%clk 0:02:33.7]} 10... Na5 {[%clk 0:02:48.9]} 11. Ba2
{[%clk 0:02:34.1]} 11... c5 {[%clk 0:02:33.7]} 12. d4 {[%clk 0:02:26.7]} 12...
Qe7 {[%clk 0:02:24.5]} 13. dxe5 {[%clk 0:02:09]} 13... Bxe5 {[%clk 0:02:25.2]}
14. Nxe5 {[%clk 0:02:10.9]} 14... Qxe5 {[%clk 0:02:26.9]} 15. Nf3 {[%clk
0:02:12.7]} 15... Qxe4 {[%clk 0:02:22.2]} 16. Re1 {[%clk 0:02:13.5]} 16... Qg4
{[%clk 0:02:12.4]} 17. Qd6 {[%clk 0:02:10.1]} 17... Ra8 {[%clk 0:02:12.9]} 18.
Ne5 {[%clk 0:02:09.1]} 18... Qh5 {[%clk 0:02:08.8]} 19. Qb6 {[%clk 0:02:03.3]}
19... axb5 {[%clk 0:02:00.9]} 20. axb5 {[%clk 0:01:56.4]} 20... Nb3 {[%clk
0:01:58.1]} 21. Bxb3 {[%clk 0:01:54.5]} 21... Rxa1 {[%clk 0:01:58.6]} 22. h3
{[%clk 0:01:50.2]} 22... Rxc1 {[%clk 0:01:55.2]} 23. Rxc1 {[%clk 0:01:50.4]}
23... Qxe5 {[%clk 0:01:55.6]} 24. Kf1 {[%clk 0:01:45.4]} 24... d6 {[%clk
0:01:54.5]} 25. Qc7 {[%clk 0:01:43]} 25... Ne4 {[%clk 0:01:51.6]} 26. Kg1 {[%clk
0:01:41]} 26... Qf4 {[%clk 0:01:42.3]} 27. Rf1 {[%clk 0:01:36.6]} 27... Nd2
{[%clk 0:01:43.1]} 28. g3 {[%clk 0:01:30.4]} 28... Qf6 {[%clk 0:01:33.7]} 0-1

[Event "*** Titled Tuesday Blitz"]
[Site "Chess.com"]
[Date "2019.06.04"]
[Round "1"]
[White "GelmanAlexander"]
[Black "dcremisi"]
[Result "1-0"]
[WhiteElo "2603"]
[BlackElo "2243"]
[TimeControl "180+2"]
[EndTime "13:06:47 PDT"]
[Termination "GelmanAlexander won by resignation"]

1. d4 {[%clk 0:03:01.9]} 1... d5 {[%clk 0:03:00.3]} 2. Nc3 {[%clk 0:03:02.7]}
2... e6 {[%clk 0:03:00.2]} 3. Bf4 {[%clk 0:03:03.5]} 3... Bd6 {[%clk 0:03:00.9]}
4. e3 {[%clk 0:03:03.8]} 4... Bxf4 {[%clk 0:03:01.4]} 5. exf4 {[%clk 0:03:04.9]}
5... c5 {[%clk 0:03:01.3]} 6. dxc5 {[%clk 0:02:53.7]} 6... Qc7 {[%clk
0:02:55.9]} 7. Qd4 {[%clk 0:02:51.6]} 7... Nf6 {[%clk 0:02:49.1]} 8. Nb5 {[%clk
0:02:44.5]} 8... Qd8 {[%clk 0:02:44]} 9. Nd6+ {[%clk 0:02:45.2]} 9... Kf8 {[%clk
0:02:44.8]} 10. O-O-O {[%clk 0:02:13.6]} 10... Nc6 {[%clk 0:02:45.7]} 11. Qe3
{[%clk 0:02:09.5]} 11... b6 {[%clk 0:02:41.4]} 12. Bb5 {[%clk 0:02:01.6]} 12...
Bd7 {[%clk 0:02:34.3]} 13. Nf3 {[%clk 0:02:02.2]} 13... bxc5 {[%clk 0:02:21.3]}
14. Qxc5 {[%clk 0:02:01.7]} 14... Qb6 {[%clk 0:02:18.9]} 15. Qa3 {[%clk
0:01:41]} 15... Kg8 {[%clk 0:02:08.8]} 16. Ng5 {[%clk 0:01:30.8]} 16... Rf8
{[%clk 0:02:00.6]} 17. Rhe1 {[%clk 0:00:55.7]} 17... h6 {[%clk 0:01:59.9]} 18.
Nf3 {[%clk 0:00:56.7]} 18... Qxf2 {[%clk 0:01:50.8]} 19. Rd2 {[%clk 0:00:52.6]}
19... Qb6 {[%clk 0:01:50.5]} 20. Bxc6 {[%clk 0:00:50.5]} 20... Bxc6 {[%clk
0:01:48.4]} 21. Ne5 {[%clk 0:00:51.8]} 21... Ba8 {[%clk 0:01:44.2]} 22. g4
{[%clk 0:00:49.2]} 22... Ne4 {[%clk 0:01:23.7]} 23. Nxe4 {[%clk 0:00:49.8]}
23... dxe4 {[%clk 0:01:25.6]} 24. Qe7 {[%clk 0:00:35.6]} 24... f6 {[%clk
0:01:01.2]} 25. Nd7 {[%clk 0:00:32.8]} 25... Qd8 {[%clk 0:00:51.5]} 26. Qxf8+
{[%clk 0:00:32.2]} 26... Qxf8 {[%clk 0:00:50.7]} 27. Nxf8 {[%clk 0:00:34.1]}
27... Bd5 {[%clk 0:00:49.1]} 28. Ng6 {[%clk 0:00:32.7]} 28... Kf7 {[%clk
0:00:49]} 29. Nxh8+ {[%clk 0:00:33.5]} 1-0

[Event "*** Titled Tuesday Blitz"]
[Site "Chess.com"]
[Date "2019.06.04"]
[Round "1"]
[White "Polish_fighter3000"]
[Black "Keithonsky"]
[Result "1-0"]
[WhiteElo "3008"]
[BlackElo "2499"]
[TimeControl "180+2"]
[EndTime "13:06:56 PDT"]
[Termination "Polish_fighter3000 won by resignation"]

1. e4 {[%clk 0:03:01.9]} 1... e6 {[%clk 0:03:00.8]} 2. d4 {[%clk 0:03:02.6]}
2... d5 {[%clk 0:03:00.1]} 3. exd5 {[%clk 0:03:04.5]} 3... exd5 {[%clk
0:03:01.8]} 4. Nf3 {[%clk 0:03:06.1]} 4... Nc6 {[%clk 0:03:03.1]} 5. Bb5 {[%clk
0:03:05]} 5... Bg4 {[%clk 0:03:04.4]} 6. O-O {[%clk 0:03:04.2]} 6... Bd6 {[%clk
0:03:05.9]} 7. h3 {[%clk 0:03:02.2]} 7... Bh5 {[%clk 0:03:06.6]} 8. c4 {[%clk
0:03:01.1]} 8... dxc4 {[%clk 0:03:05.9]} 9. d5 {[%clk 0:02:56.9]} 9... a6 {[%clk
0:03:06.8]} 10. Ba4 {[%clk 0:02:57.4]} 10... b5 {[%clk 0:03:05.6]} 11. dxc6
{[%clk 0:02:58.8]} 11... bxa4 {[%clk 0:03:06.7]} 12. Nbd2 {[%clk 0:02:57.6]}
12... Ne7 {[%clk 0:02:57.9]} 13. Qxa4 {[%clk 0:02:57.2]} 13... O-O {[%clk
0:02:57]} 14. Qxc4 {[%clk 0:02:57.6]} 14... Qe8 {[%clk 0:02:56.1]} 15. Nd4
{[%clk 0:02:58.2]} 15... a5 {[%clk 0:02:47.3]} 16. b3 {[%clk 0:02:48.8]} 16...
Be5 {[%clk 0:02:46.2]} 17. Bb2 {[%clk 0:02:42.4]} 17... Bxd4 {[%clk 0:02:45]}
18. Qxd4 {[%clk 0:02:38]} 18... f6 {[%clk 0:02:44.2]} 19. Ba3 {[%clk 0:02:36.3]}
19... Rd8 {[%clk 0:02:34.9]} 20. Qc3 {[%clk 0:02:25.2]} 20... Nd5 {[%clk
0:02:28.4]} 21. Qxa5 {[%clk 0:02:25.1]} 21... Rf7 {[%clk 0:02:24.2]} 22. Rfe1
{[%clk 0:02:24.2]} 22... Qxc6 {[%clk 0:02:23.6]} 23. Rac1 {[%clk 0:02:25.4]}
23... Qd7 {[%clk 0:02:16.6]} 24. Ne4 {[%clk 0:02:23.6]} 24... Nf4 {[%clk
0:02:14.4]} 25. Ng3 {[%clk 0:02:23.4]} 25... Bg6 {[%clk 0:02:10]} 26. Rc4 {[%clk
0:02:07.4]} 26... Nd3 {[%clk 0:01:58.2]} 27. Re3 {[%clk 0:02:07.1]} 27... Ne5
{[%clk 0:01:58.3]} 28. Rc1 {[%clk 0:02:05.9]} 28... h5 {[%clk 0:01:59.7]} 29.
Ne2 {[%clk 0:01:58.4]} 29... Qf5 {[%clk 0:01:47.7]} 30. Bb4 {[%clk 0:01:45.5]}
30... Kh7 {[%clk 0:01:33.3]} 31. Bc3 {[%clk 0:01:41.2]} 31... Rfd7 {[%clk
0:01:17.6]} 32. Ng3 {[%clk 0:01:28.3]} 32... Rd1+ {[%clk 0:01:17.1]} 33. Re1
{[%clk 0:01:29.2]} 33... Rxe1+ {[%clk 0:01:12.4]} 34. Rxe1 {[%clk 0:01:28.5]}
34... Qc2 {[%clk 0:01:10.8]} 35. Bxe5 {[%clk 0:01:25.4]} 35... fxe5 {[%clk
0:01:12.7]} 36. Qxe5 {[%clk 0:01:26.1]} 36... h4 {[%clk 0:01:11.8]} 37. Nh5
{[%clk 0:01:24.3]} 37... Rd7 {[%clk 0:01:13.2]} 38. Nf4 {[%clk 0:01:23.4]} 38...
Bf5 {[%clk 0:01:12.4]} 39. a4 {[%clk 0:01:21.5]} 39... Rd2 {[%clk 0:01:10]} 40.
Ne6 {[%clk 0:01:13.8]} 40... Rd7 {[%clk 0:01:04.6]} 41. Nf8+ {[%clk 0:01:13.5]}
1-0

[Event "*** Titled Tuesday Blitz"]
[Site "Chess.com"]
[Date "2019.06.04"]
[Round "1"]
[White "temus_galaktionov"]
[Black "MasterKroket"]
[Result "1-0"]
[WhiteElo "2679"]
[BlackElo "2336"]
[TimeControl "180+2"]
[EndTime "13:06:59 PDT"]
[Termination "temus_galaktionov won by checkmate"]

1. d4 {[%clk 0:02:39]} 1... Nf6 {[%clk 0:02:14.5]} 2. Nf3 {[%clk 0:02:38.3]}
2... e6 {[%clk 0:02:15.7]} 3. c4 {[%clk 0:02:39.6]} 3... b6 {[%clk 0:02:16.6]}
4. g3 {[%clk 0:02:40]} 4... Bb7 {[%clk 0:02:17.8]} 5. Bg2 {[%clk 0:02:40.5]}
5... Be7 {[%clk 0:02:19.2]} 6. Nc3 {[%clk 0:02:40.4]} 6... O-O {[%clk 0:02:20]}
7. Qc2 {[%clk 0:02:33.8]} 7... Nc6 {[%clk 0:02:14.7]} 8. O-O {[%clk 0:02:32.2]}
8... Nb4 {[%clk 0:02:14.2]} 9. Qb1 {[%clk 0:02:32]} 9... c5 {[%clk 0:02:10.8]}
10. a3 {[%clk 0:02:27.9]} 10... cxd4 {[%clk 0:02:11.5]} 11. axb4 {[%clk
0:02:22.9]} 11... dxc3 {[%clk 0:02:11.3]} 12. bxc3 {[%clk 0:02:24.8]} 12... Qc7
{[%clk 0:02:04.1]} 13. Qb3 {[%clk 0:02:22.5]} 13... Rfc8 {[%clk 0:02:03.8]} 14.
Nd2 {[%clk 0:02:22.2]} 14... Bxg2 {[%clk 0:02:03.1]} 15. Kxg2 {[%clk 0:02:23.4]}
15... d5 {[%clk 0:01:59.9]} 16. cxd5 {[%clk 0:02:20.5]} 16... Nxd5 {[%clk
0:02:01]} 17. Bb2 {[%clk 0:02:18.5]} 17... Nxc3 {[%clk 0:01:59]} 18. Rfc1 {[%clk
0:02:14.5]} 18... Qb7+ {[%clk 0:01:59.8]} 19. Nf3 {[%clk 0:02:14.9]} 19... Nd5
{[%clk 0:01:51.3]} 20. b5 {[%clk 0:02:14.5]} 20... Rxc1 {[%clk 0:01:49.9]} 21.
Rxc1 {[%clk 0:02:14.5]} 21... a5 {[%clk 0:01:48]} 22. bxa6 {[%clk 0:02:12.1]}
22... Qxa6 {[%clk 0:01:47.7]} 23. e4 {[%clk 0:02:07.1]} 23... Nf6 {[%clk
0:01:44.6]} 24. Rc7 {[%clk 0:02:01.7]} 24... Bc5 {[%clk 0:01:40.2]} 25. Ng5
{[%clk 0:01:54.9]} 25... Qe2 {[%clk 0:01:36.3]} 26. Rxf7 {[%clk 0:01:38.7]}
26... Qxf2+ {[%clk 0:01:33.6]} 27. Kh3 {[%clk 0:01:37.7]} 27... Qf1+ {[%clk
0:01:11.6]} 28. Kh4 {[%clk 0:01:38.5]} 28... h6 {[%clk 0:00:55.7]} 29. Qxe6
{[%clk 0:01:12.9]} 29... hxg5+ {[%clk 0:00:54.5]} 30. Kxg5 {[%clk 0:01:14]}
30... Be3+ {[%clk 0:00:51.5]} 31. Kg6 {[%clk 0:01:14.3]} 31... Bh6 {[%clk
0:00:21.1]} 32. Rxg7+ {[%clk 0:01:11.1]} 32... Kh8 {[%clk 0:00:19.5]} 33. Rh7#
{[%clk 0:01:10.6]} 1-0

[Event "*** Titled Tuesday Blitz"]
[Site "Chess.com"]
[Date "2019.06.04"]
[Round "1"]
[White "tan275"]
[Black "grzechu96"]
[Result "0-1"]
[WhiteElo "2194"]
[BlackElo "2565"]
[TimeControl "180+2"]
[EndTime "13:07:03 PDT"]
[Termination "grzechu96 won by resignation"]

1. d4 {[%clk 0:03:01.9]} 1... d5 {[%clk 0:02:56.6]} 2. c4 {[%clk 0:03:02.8]}
2... e6 {[%clk 0:02:53.2]} 3. Nc3 {[%clk 0:03:01.9]} 3... c6 {[%clk 0:02:54.2]}
4. e3 {[%clk 0:03:01.6]} 4... f5 {[%clk 0:02:50.6]} 5. Bd3 {[%clk 0:02:50]} 5...
Nf6 {[%clk 0:02:50.3]} 6. Nf3 {[%clk 0:02:46.5]} 6... Bd6 {[%clk 0:02:51]} 7.
O-O {[%clk 0:02:31.1]} 7... O-O {[%clk 0:02:47.9]} 8. b3 {[%clk 0:02:31.8]} 8...
Qe7 {[%clk 0:02:47.9]} 9. Ne2 {[%clk 0:02:31.2]} 9... Ne4 {[%clk 0:02:37.9]} 10.
Ne5 {[%clk 0:02:28.8]} 10... Bd7 {[%clk 0:02:24.8]} 11. Bb2 {[%clk 0:02:29.3]}
11... Be8 {[%clk 0:02:24.8]} 12. f3 {[%clk 0:02:29.7]} 12... Nf6 {[%clk
0:02:25.8]} 13. Ng3 {[%clk 0:02:29.8]} 13... Nbd7 {[%clk 0:02:25.4]} 14. f4
{[%clk 0:02:21.4]} 14... Ne4 {[%clk 0:02:16.2]} 15. Qf3 {[%clk 0:02:21.9]} 15...
Nd2 {[%clk 0:02:16.6]} 16. Qe2 {[%clk 0:02:20.8]} 16... Nxf1 {[%clk 0:02:17.6]}
17. Rxf1 {[%clk 0:02:22.6]} 17... Nf6 {[%clk 0:02:10.6]} 18. c5 {[%clk
0:02:17.4]} 18... Bc7 {[%clk 0:02:11.5]} 19. a4 {[%clk 0:02:11.4]} 19... Rb8
{[%clk 0:02:04.5]} 20. Ba3 {[%clk 0:02:05.1]} 20... Bxe5 {[%clk 0:02:00.5]} 21.
fxe5 {[%clk 0:01:58.1]} 21... Ne4 {[%clk 0:02:01.7]} 22. Qc2 {[%clk 0:01:51]}
22... Nxg3 {[%clk 0:02:01.9]} 23. hxg3 {[%clk 0:01:51]} 23... Bh5 {[%clk
0:02:01.7]} 24. Rf4 {[%clk 0:01:45]} 24... Qg5 {[%clk 0:01:51.2]} 25. Qf2 {[%clk
0:01:42.3]} 25... Bg4 {[%clk 0:01:51.4]} 26. Bc1 {[%clk 0:01:23.1]} 26... Rf7
{[%clk 0:01:49.2]} 27. e4 {[%clk 0:01:17.4]} 27... dxe4 {[%clk 0:01:22.2]} 28.
Bxe4 {[%clk 0:01:06.6]} 28... fxe4 {[%clk 0:01:18.7]} 29. Rxf7 {[%clk
0:01:03.8]} 29... Qxc1+ {[%clk 0:01:19.4]} 30. Kh2 {[%clk 0:01:05]} 30... Qh6+
{[%clk 0:01:15.2]} 31. Kg1 {[%clk 0:01:05.4]} 31... e3 {[%clk 0:01:09.8]} 32.
Qf4 {[%clk 0:01:03.8]} 32... Qxf4 {[%clk 0:01:08.7]} 33. Rxf4 {[%clk 0:01:04.1]}
33... e2 {[%clk 0:01:09.2]} 34. Kf2 {[%clk 0:00:57.4]} 34... Rf8 {[%clk
0:01:10.2]} 35. Rxf8+ {[%clk 0:00:46]} 35... Kxf8 {[%clk 0:01:12.1]} 36. Ke1
{[%clk 0:00:46.6]} 36... Kf7 {[%clk 0:01:13.1]} 0-1

[Event "*** Titled Tuesday Blitz"]
[Site "Chess.com"]
[Date "2019.06.04"]
[Round "1"]
[White "x-5963514717"]
[Black "Zhigalko_Sergei"]
[Result "0-1"]
[WhiteElo "2488"]
[BlackElo "2923"]
[TimeControl "180+2"]
[EndTime "13:07:04 PDT"]
[Termination "Zhigalko_Sergei won by resignation"]

1. Nf3 {[%clk 0:03:01.9]} 1... d5 {[%clk 0:03:01]} 2. g3 {[%clk 0:03:03.5]} 2...
c6 {[%clk 0:03:02.4]} 3. Bg2 {[%clk 0:03:05.1]} 3... Bg4 {[%clk 0:03:04.1]} 4.
O-O {[%clk 0:03:06.6]} 4... Nd7 {[%clk 0:03:05.7]} 5. d3 {[%clk 0:03:06.6]} 5...
e6 {[%clk 0:03:06.9]} 6. Nbd2 {[%clk 0:03:07.6]} 6... Bd6 {[%clk 0:03:07.9]} 7.
e4 {[%clk 0:03:08.8]} 7... Ne7 {[%clk 0:03:08.8]} 8. h3 {[%clk 0:03:10.2]} 8...
Bh5 {[%clk 0:03:10]} 9. Qe2 {[%clk 0:03:10.3]} 9... O-O {[%clk 0:03:11.1]} 10.
b3 {[%clk 0:03:08]} 10... a5 {[%clk 0:03:11.8]} 11. a4 {[%clk 0:03:08.8]} 11...
Re8 {[%clk 0:03:11.4]} 12. Bb2 {[%clk 0:03:08.3]} 12... c5 {[%clk 0:03:12.9]}
13. e5 {[%clk 0:03:06.7]} 13... Bc7 {[%clk 0:03:14.1]} 14. g4 {[%clk 0:03:07.8]}
14... Bg6 {[%clk 0:03:15.1]} 15. Nh4 {[%clk 0:03:09.1]} 15... Nc6 {[%clk
0:03:13.6]} 16. Nxg6 {[%clk 0:03:06.8]} 16... hxg6 {[%clk 0:02:58.6]} 17. f4
{[%clk 0:02:55.9]} 17... g5 {[%clk 0:02:59.9]} 18. fxg5 {[%clk 0:02:38.1]} 18...
Bxe5 {[%clk 0:03:00]} 19. Bxe5 {[%clk 0:02:37]} 19... Ndxe5 {[%clk 0:03:01.9]}
20. Nf3 {[%clk 0:02:30.8]} 20... Ng6 {[%clk 0:02:51.8]} 21. Qd2 {[%clk
0:02:17.7]} 21... e5 {[%clk 0:02:52.6]} 22. Rae1 {[%clk 0:02:06.6]} 22... Nd4
{[%clk 0:02:46.6]} 23. Nxd4 {[%clk 0:02:05.1]} 23... cxd4 {[%clk 0:02:48.5]} 24.
Rf5 {[%clk 0:01:47.7]} 24... Qd6 {[%clk 0:02:29.4]} 25. Ref1 {[%clk 0:01:41.3]}
25... Re7 {[%clk 0:02:24]} 26. h4 {[%clk 0:01:38.7]} 26... Nxh4 {[%clk
0:02:23.3]} 27. Qf2 {[%clk 0:01:34.5]} 27... Nxf5 {[%clk 0:02:15.9]} 28. gxf5
{[%clk 0:01:36.4]} 28... e4 {[%clk 0:02:11.6]} 29. Qxd4 {[%clk 0:01:28.1]} 29...
Qe5 {[%clk 0:01:54.4]} 30. Qe3 {[%clk 0:00:51]} 30... exd3 {[%clk 0:01:29.3]}
31. Qxd3 {[%clk 0:00:52.3]} 31... Rd8 {[%clk 0:01:29.4]} 32. Rf3 {[%clk
0:00:38.8]} 32... Qe1+ {[%clk 0:01:25.4]} 33. Bf1 {[%clk 0:00:39.9]} 33... Re4
{[%clk 0:01:23.7]} 34. Rg3 {[%clk 0:00:29.7]} 34... Rf4 {[%clk 0:01:21.2]} 35.
f6 {[%clk 0:00:26.6]} 35... Rxf1+ {[%clk 0:01:21.7]} 36. Qxf1 {[%clk 0:00:24.3]}
36... Qxg3+ {[%clk 0:01:22.7]} 37. Qg2 {[%clk 0:00:25.3]} 37... Qxg2+ {[%clk
0:01:23.8]} 0-1

[Event "*** Titled Tuesday Blitz"]
[Site "Chess.com"]
[Date "2019.06.04"]
[Round "1"]
[White "Keranke"]
[Black "Rish_97"]
[Result "1-0"]
[WhiteElo "2856"]
[BlackElo "2445"]
[TimeControl "180+2"]
[EndTime "13:07:12 PDT"]
[Termination "Keranke won by resignation"]

1. d4 {[%clk 0:02:59.4]} 1... Nf6 {[%clk 0:02:58.7]} 2. Bf4 {[%clk 0:02:58.7]}
2... d6 {[%clk 0:02:57.7]} 3. e3 {[%clk 0:02:59.7]} 3... g6 {[%clk 0:02:59]} 4.
Nf3 {[%clk 0:03:00.9]} 4... Bg7 {[%clk 0:03:00.6]} 5. h3 {[%clk 0:03:02.5]} 5...
O-O {[%clk 0:03:01.7]} 6. Bh2 {[%clk 0:03:04.1]} 6... b6 {[%clk 0:03:01.3]} 7.
a4 {[%clk 0:03:04.5]} 7... a6 {[%clk 0:03:01.5]} 8. Bd3 {[%clk 0:03:04.2]} 8...
Bb7 {[%clk 0:03:02.8]} 9. Nbd2 {[%clk 0:03:05.6]} 9... Nbd7 {[%clk 0:03:04.2]}
10. c3 {[%clk 0:03:06.5]} 10... c5 {[%clk 0:03:05.6]} 11. O-O {[%clk 0:03:07]}
11... Re8 {[%clk 0:02:50.1]} 12. Qe2 {[%clk 0:03:04.3]} 12... Qc8 {[%clk
0:02:45.8]} 13. e4 {[%clk 0:03:02.5]} 13... cxd4 {[%clk 0:02:34.8]} 14. cxd4
{[%clk 0:03:04.4]} 14... e5 {[%clk 0:02:36.3]} 15. Nc4 {[%clk 0:02:54.7]} 15...
Qb8 {[%clk 0:02:29.1]} 16. Rfe1 {[%clk 0:02:22.3]} 16... b5 {[%clk 0:02:03.5]}
17. Na5 {[%clk 0:02:19.4]} 17... exd4 {[%clk 0:01:54.3]} 18. Nxb7 {[%clk
0:02:15.4]} 18... Qxb7 {[%clk 0:01:56.2]} 19. axb5 {[%clk 0:02:02.8]} 19... axb5
{[%clk 0:01:48.2]} 20. Rxa8 {[%clk 0:02:04.3]} 20... Qxa8 {[%clk 0:01:47.6]} 21.
Bxd6 {[%clk 0:02:04.6]} 21... Qc6 {[%clk 0:01:34.9]} 22. e5 {[%clk 0:02:01.5]}
22... Nh5 {[%clk 0:00:58]} 23. Bxb5 {[%clk 0:01:56.1]} 23... Qb7 {[%clk
0:00:58.4]} 24. Ba6 {[%clk 0:00:56.2]} 24... Qa7 {[%clk 0:00:39.1]} 25. Qb5
{[%clk 0:00:48.7]} 25... Nf4 {[%clk 0:00:32.9]} 26. Bb7 {[%clk 0:00:41.3]} 26...
Rb8 {[%clk 0:00:16.6]} 27. Bxb8 {[%clk 0:00:41.4]} 1-0

[Event "*** Titled Tuesday Blitz"]
[Site "Chess.com"]
[Date "2019.06.04"]
[Round "1"]
[White "Naruto-K"]
[Black "Alexander_Donchenko"]
[Result "0-1"]
[WhiteElo "2400"]
[BlackElo "2755"]
[TimeControl "180+2"]
[EndTime "13:07:15 PDT"]
[Termination "Alexander_Donchenko won by resignation"]

1. d4 {[%clk 0:02:57]} 1... d5 {[%clk 0:03:00.2]} 2. Bf4 {[%clk 0:02:58.2]} 2...
c5 {[%clk 0:03:00.9]} 3. e3 {[%clk 0:02:59.3]} 3... cxd4 {[%clk 0:03:02.1]} 4.
exd4 {[%clk 0:02:59.8]} 4... Nc6 {[%clk 0:03:03.8]} 5. c3 {[%clk 0:03:00.8]}
5... Bf5 {[%clk 0:03:04.8]} 6. Qb3 {[%clk 0:03:01.4]} 6... Qd7 {[%clk
0:03:05.8]} 7. Nd2 {[%clk 0:02:59.9]} 7... e6 {[%clk 0:03:06.9]} 8. Ngf3 {[%clk
0:03:00.7]} 8... f6 {[%clk 0:03:07]} 9. Be2 {[%clk 0:02:54.3]} 9... g5 {[%clk
0:03:03.6]} 10. Be3 {[%clk 0:02:48.5]} 10... Bd6 {[%clk 0:03:02.1]} 11. Nf1
{[%clk 0:02:49.1]} 11... Nge7 {[%clk 0:02:59.2]} 12. Ng3 {[%clk 0:02:49.7]}
12... Bg6 {[%clk 0:03:00.2]} 13. Nd2 {[%clk 0:02:47.2]} 13... O-O {[%clk
0:02:50.1]} 14. O-O {[%clk 0:02:40.3]} 14... Nf5 {[%clk 0:02:37.9]} 15. Nxf5
{[%clk 0:01:33.8]} 15... Bxf5 {[%clk 0:02:39.8]} 16. h3 {[%clk 0:01:35]} 16...
Rac8 {[%clk 0:02:36.3]} 17. f4 {[%clk 0:01:35.7]} 17... h6 {[%clk 0:02:32.7]}
18. fxg5 {[%clk 0:01:19.5]} 18... hxg5 {[%clk 0:02:25.2]} 19. Rxf5 {[%clk
0:01:16.2]} 19... exf5 {[%clk 0:02:26.2]} 20. Qxd5+ {[%clk 0:01:17.2]} 20... Kg7
{[%clk 0:02:26.9]} 21. Kh1 {[%clk 0:01:11.8]} 21... Rce8 {[%clk 0:02:23.4]} 22.
Nc4 {[%clk 0:01:05.7]} 22... Qf7 {[%clk 0:01:12.4]} 23. Qxf7+ {[%clk 0:01:03.7]}
23... Rxf7 {[%clk 0:01:14.3]} 24. Nxd6 {[%clk 0:00:58.5]} 24... Rxe3 {[%clk
0:01:13.7]} 25. Nxf7 {[%clk 0:00:59.4]} 25... Rxe2 {[%clk 0:01:15.2]} 26. Nd6
{[%clk 0:01:00.5]} 26... Rxb2 {[%clk 0:01:16.4]} 27. Nxf5+ {[%clk 0:01:01.6]}
27... Kg6 {[%clk 0:01:17.7]} 28. Nd6 {[%clk 0:00:50.6]} 28... b6 {[%clk
0:01:16.3]} 29. a4 {[%clk 0:00:30.5]} 29... Rc2 {[%clk 0:01:14.7]} 30. Ra3
{[%clk 0:00:30.4]} 30... f5 {[%clk 0:01:12.3]} 31. Nc8 {[%clk 0:00:28.3]} 31...
f4 {[%clk 0:01:11.6]} 32. d5 {[%clk 0:00:28.9]} 32... Ne5 {[%clk 0:01:12.9]} 33.
Nxa7 {[%clk 0:00:28.5]} 33... f3 {[%clk 0:01:14.1]} 34. Nc6 {[%clk 0:00:20.8]}
34... fxg2+ {[%clk 0:01:11.5]} 0-1

[Event "*** Titled Tuesday Blitz"]
[Site "Chess.com"]
[Date "2019.06.04"]
[Round "1"]
[White "bracuarta"]
[Black "Karacsonyi_Gellert"]
[Result "0-1"]
[WhiteElo "2102"]
[BlackElo "2536"]
[TimeControl "180+2"]
[EndTime "13:07:19 PDT"]
[Termination "Karacsonyi_Gellert won by resignation"]

1. d4 {[%clk 0:03:00]} 1... Nf6 {[%clk 0:02:59.1]} 2. c4 {[%clk 0:03:00.6]} 2...
e6 {[%clk 0:02:58.6]} 3. Nc3 {[%clk 0:03:01]} 3... Bb4 {[%clk 0:02:57.6]} 4. e3
{[%clk 0:03:02.1]} 4... O-O {[%clk 0:02:58.2]} 5. Ne2 {[%clk 0:03:03.3]} 5... c6
{[%clk 0:02:57.8]} 6. a3 {[%clk 0:03:04.2]} 6... Ba5 {[%clk 0:02:59.2]} 7. b4
{[%clk 0:03:02.2]} 7... Bc7 {[%clk 0:03:00.6]} 8. e4 {[%clk 0:03:02.2]} 8... d5
{[%clk 0:03:01.4]} 9. e5 {[%clk 0:03:02.9]} 9... Ne8 {[%clk 0:02:59.4]} 10. Ng3
{[%clk 0:03:02.5]} 10... f6 {[%clk 0:02:57.7]} 11. f4 {[%clk 0:02:58.5]} 11...
a5 {[%clk 0:02:56.1]} 12. Rb1 {[%clk 0:02:56.6]} 12... axb4 {[%clk 0:02:56.1]}
13. axb4 {[%clk 0:02:58.5]} 13... c5 {[%clk 0:02:37.5]} 14. bxc5 {[%clk
0:02:22.9]} 14... Ba5 {[%clk 0:02:37.8]} 15. Bd2 {[%clk 0:02:02.9]} 15... dxc4
{[%clk 0:02:38]} 16. Nb5 {[%clk 0:01:48.1]} 16... Nc6 {[%clk 0:02:24.7]} 17. Nd6
{[%clk 0:01:36.8]} 17... Nxd4 {[%clk 0:02:18.5]} 18. Bxc4 {[%clk 0:01:35.9]}
18... Nc6 {[%clk 0:02:06.6]} 19. O-O {[%clk 0:01:33.2]} 19... fxe5 {[%clk
0:01:59.8]} 20. fxe5 {[%clk 0:01:19.5]} 20... Rxf1+ {[%clk 0:01:59.6]} 21. Nxf1
{[%clk 0:01:14.1]} 21... Bxd2 {[%clk 0:01:52.4]} 22. Qxd2 {[%clk 0:01:15.1]}
22... Nxe5 {[%clk 0:01:53.6]} 23. Nxc8 {[%clk 0:01:03.1]} 23... Qxc8 {[%clk
0:01:25.5]} 24. Qb4 {[%clk 0:00:50.8]} 24... Nxc4 {[%clk 0:01:24.1]} 25. Qxc4
{[%clk 0:00:51.6]} 25... Nf6 {[%clk 0:01:02.8]} 26. Rb6 {[%clk 0:00:47.3]} 26...
Nd5 {[%clk 0:01:02.7]} 27. Rd6 {[%clk 0:00:41.4]} 27... Ra1 {[%clk 0:00:56.2]}
28. h3 {[%clk 0:00:40.7]} 28... Rxf1+ {[%clk 0:00:40.5]} 29. Qxf1 {[%clk
0:00:30.4]} 29... Qxc5+ {[%clk 0:00:39.9]} 0-1